bitfinex-derivatives/quotes_BTCF0:USTF0_20240817
["timestamp","ask_amount","ask_price","bid_price","bid_amount"]
[1723892402651,0.20796694,59128.0,59127.0,0.003]
[1723892402841,0.20796638,59128.0,59127.0,0.003]
[1723892403043,0.17531014,59128.0,59127.0,0.003]
[1723892403851,0.27627587,59128.0,59127.0,0.003]
[1723892404852,0.27377587,59128.0,59127.0,0.003]
[1723892405052,0.17281014,59128.0,59127.0,0.003]
[1723892405260,0.27374193,59128.0,59127.0,0.003]
[1723892405855,0.17281014,59128.0,59127.0,0.003]
[1723892407755,0.53361014,59128.0,59127.0,0.003]
[1723892409860,0.5062,59128.0,59127.0,0.003]
[1723892410060,0.59028343,59128.0,59127.0,0.003]
[1723892410260,0.5062,59128.0,59127.0,0.003]
[1723892410458,0.59028019,59128.0,59127.0,0.003]
[1723892410852,0.68378019,59128.0,59127.0,0.003]
[1723892411161,0.49838019,59128.0,59127.0,0.003]
[1723892411955,0.4143,59128.0,59127.0,0.003]
[1723892412352,0.49838019,59128.0,59127.0,0.003]
[1723892412862,0.44170962,59128.0,59127.0,0.003]
[1723892417358,0.50511662,59128.0,59127.0,0.003]
[1723892417863,0.14431662,59128.0,59127.0,0.003]
[1723892418059,0.50511662,59128.0,59127.0,0.003]
[1723892424363,0.14431662,59128.0,59127.0,0.003]
[1723892424563,0.50511662,59128.0,59127.0,0.003]
[1723892424766,0.14431662,59128.0,59127.0,0.003]
[1723892425071,0.50511662,59128.0,59127.0,0.003]
[1723892426665,0.14431662,59128.0,59127.0,0.003]
[1723892426866,0.50511662,59128.0,59127.0,0.003]
[1723892427667,0.14431662,59128.0,59127.0,0.003]
[1723892427867,0.50511662,59128.0,59127.0,0.003]
[1723892428465,0.60604841,59128.0,59127.0,0.003]
[1723892429070,0.50511662,59128.0,59127.0,0.003]
[1723892429270,0.50511687,59128.0,59127.0,0.003]
[1723892429471,0.60604866,59128.0,59127.0,0.003]
[1723892430672,0.50511687,59128.0,59127.0,0.003]
[1723892431069,0.60604866,59128.0,59127.0,0.003]
[1723892431383,0.24524866,59128.0,59127.0,0.003]
[1723892431672,0.60604866,59128.0,59127.0,0.003]
[1723892432569,0.24524866,59128.0,59127.0,0.003]
[1723892432877,0.60604866,59128.0,59127.0,0.003]
[1723892433871,0.42661825,59128.0,59127.0,0.003]
[1723892434075,0.39920838,59128.0,59127.0,0.003]
[1723892434270,0.39920838,59128.0,59127.0,0.04021754]
[1723892437275,0.3718,59128.0,59127.0,0.003]
[1723892437476,0.3718,59128.0,59127.0,0.04021734]
[1723892438665,0.4559769,59128.0,59127.0,0.09096415]
[1723892439469,0.4559769,59128.0,59127.0,0.04021734]
[1723892440270,0.0951769,59128.0,59127.0,0.04021734]
[1723892440574,0.0951769,59128.0,59127.0,0.09096415]
[1723892441077,0.0951769,59128.0,59127.0,0.04021734]
[1723892441276,0.0951769,59128.0,59127.0,0.09096415]
[1723892442279,0.0951769,59128.0,59127.0,0.10362534]
[1723892442579,0.0515053,59128.0,59127.0,1.37178534]
[1723892442767,0.0515053,59128.0,59127.0,1.40948534]
[1723892442967,0.001,59128.0,59127.0,1.49368919]
[1723892443177,0.001,59128.0,59127.0,1.40948534]
[1723892443370,0.0505053,59130.0,59129.0,0.063406]
[1723892443564,0.0505053,59130.0,59129.0,0.59412334]
[1723892443869,0.0675945,59133.0,59129.0,0.59412334]
[1723892443870,0.0505053,59131.0,59129.0,1.10148334]
[1723892444067,0.0505053,59131.0,59130.0,0.13071734]
[1723892444275,0.00025366,59133.0,59131.0,0.063404]
[1723892444579,0.00025366,59133.0,59132.0,0.03721734]
[1723892445172,0.00025366,59133.0,59132.0,0.39801734]
[1723892445479,0.00025366,59133.0,59132.0,0.39800762]
[1723892445772,0.0504713,59140.0,59132.0,1.47532762]
[1723892445975,0.0504713,59139.0,59138.0,0.14413031]
[1723892446179,0.06064059,59141.0,59140.0,0.063394]
[1723892446366,0.0504713,59141.0,59140.0,0.10060112]
[1723892446789,0.0504713,59141.0,59140.0,0.19410112]
[1723892447079,0.06734084,59144.0,59140.0,0.10060112]
[1723892447080,0.0504713,59142.0,59140.0,0.10060112]
[1723892447279,0.0935,59141.0,59140.0,0.063394]
[1723892447485,0.1025,59141.0,59140.0,0.063394]
[1723892448670,0.1145,59141.0,59140.0,0.063394]
[1723892450970,0.021,59141.0,59140.0,0.063394]
[1723892454286,0.021,59141.0,59140.0,0.156894]
[1723892460981,0.021,59141.0,59140.0,0.063394]
[1723892461190,0.021,59141.0,59136.0,0.00972447]
[1723892461375,0.021,59141.0,59135.0,0.00025366]
[1723892461376,0.0935,59139.0,59135.0,0.09375366]
[1723892461578,0.0465,59138.0,59135.0,0.24375366]
[1723892461974,0.0465,59138.0,59135.0,0.09375366]
[1723892462189,0.0465,59138.0,59136.0,0.063398]
[1723892462988,0.0935,59137.0,59135.0,0.00025366]
[1723892463295,0.3608,59136.0,59135.0,0.00025366]
[1723892463475,0.3808,59136.0,59135.0,0.00025366]
[1723892464182,0.4312713,59136.0,59135.0,0.00025366]
[1723892464387,0.3808,59136.0,59135.0,0.00025366]
[1723892465091,0.4312713,59136.0,59135.0,0.00025366]
[1723892465886,0.4382713,59136.0,59135.0,0.00025366]
[1723892466089,0.031,59136.0,59135.0,0.00025366]
[1723892466282,0.4422713,59136.0,59135.0,0.00025366]
[1723892466689,0.3918,59136.0,59135.0,0.00025366]
[1723892467094,0.4422713,59136.0,59135.0,0.00025366]
[1723892467288,0.031,59136.0,59135.0,0.00025366]
[1723892469092,0.0814713,59136.0,59135.0,0.00025366]
[1723892469486,0.0614713,59136.0,59135.0,0.00025366]
[1723892469988,0.011,59136.0,59135.0,0.09375366]
[1723892470687,0.011,59136.0,59135.0,1.14107366]
[1723892470885,0.011,59136.0,59135.0,1.20858075]
[1723892471598,0.011,59136.0,59135.0,1.11508075]
[1723892471798,0.011,59136.0,59135.0,1.20858075]
[1723892472098,0.011,59136.0,59135.0,1.14107366]
[1723892472293,0.011,59136.0,59135.0,0.74107366]
[1723892473893,0.0614713,59136.0,59135.0,0.74107366]
[1723892474490,0.0614713,59136.0,59135.0,0.23375366]
[1723892474789,0.0614713,59136.0,59135.0,0.74107366]
[1723892474995,0.011,59136.0,59135.0,0.74107366]
[1723892475699,0.011,59136.0,59135.0,0.23375366]
[1723892475886,0.06150977,59136.0,59135.0,0.23375366]
[1723892476897,0.06150977,59136.0,59135.0,0.59455366]
[1723892478794,0.0951769,59136.0,59135.0,0.59455366]
[1723892479004,0.011,59136.0,59135.0,0.59455366]
[1723892480001,0.10102099,59141.0,59135.0,1.10187366]
[1723892480297,0.10102099,59142.0,59140.0,0.0935]
[1723892480501,0.10102099,59142.0,59141.0,0.0935]
[1723892481996,0.02740033,59142.0,59141.0,0.156893]
[1723892482193,0.02740033,59144.0,59143.0,0.063391]
[1723892482496,0.15354475,59144.0,59143.0,0.063391]
[1723892482694,0.17354475,59144.0,59143.0,0.063391]
[1723892483300,0.17354475,59144.0,59141.0,0.002]
[1723892483501,0.0935,59142.0,59141.0,0.002]
[1723892483698,0.15354475,59142.0,59141.0,0.001]
[1723892483995,0.13090033,59142.0,59141.0,0.001]
[1723892484797,0.14090033,59142.0,59141.0,0.002]
[1723892485192,0.14090033,59142.0,59141.0,0.001]
[1723892485688,0.1135,59142.0,59141.0,0.001]
[1723892486102,0.1265,59142.0,59141.0,0.002]
[1723892486286,0.1165,59142.0,59141.0,0.002]
[1723892489002,0.023,59142.0,59141.0,0.002]
[1723892489397,0.023,59142.0,59141.0,0.0955]
[1723892491300,0.023,59142.0,59141.0,0.14616154]
[1723892491497,0.023,59142.0,59141.0,0.0955]
[1723892493200,0.023,59142.0,59141.0,0.14616154]
[1723892495309,0.023,59142.0,59141.0,0.0955]
[1723892495807,0.023,59142.0,59141.0,0.14617875]
[1723892496109,0.043,59142.0,59141.0,0.002]
[1723892498207,0.043,59142.0,59141.0,0.05267902]
[1723892499405,0.07040104,59142.0,59141.0,0.002]
[1723892500303,0.07040133,59142.0,59141.0,0.05272045]
[1723892501302,0.07040133,59142.0,59141.0,0.05271947]
[1723892502217,0.05040133,59142.0,59141.0,0.05271947]
[1723892502513,0.06040133,59142.0,59141.0,0.05271947]
[1723892503206,0.07040133,59142.0,59141.0,0.05271947]
[1723892504702,0.13379333,59142.0,59140.0,0.05071947]
[1723892504902,0.063398,59136.0,59135.0,0.00025366]
[1723892505108,0.90534311,59136.0,59135.0,0.00025366]
[1723892505413,0.83160122,59136.0,59135.0,0.00025366]
[1723892505808,1.02548625,59136.0,59135.0,0.00025366]
[1723892506406,0.92440122,59136.0,59135.0,0.00025366]
[1723892506606,0.93040122,59136.0,59135.0,0.00125366]
[1723892508416,0.93640122,59136.0,59135.0,0.00225366]
[1723892508713,0.93640427,59136.0,59135.0,0.00225366]
[1723892509109,1.84372427,59136.0,59135.0,0.00225366]
[1723892509313,0.0935,59128.0,59125.0,0.11413003]
[1723892509508,0.05048642,59127.0,59126.0,0.03721608]
[1723892510517,0.0935,59128.0,59126.0,0.03721608]
[1723892510814,0.0935,59128.0,59127.0,0.03721608]
[1723892511821,0.14394659,59128.0,59127.0,0.03721608]
[1723892512014,0.0935,59128.0,59127.0,0.03721608]
[1723892512314,0.05044659,59129.0,59127.0,0.13071608]
[1723892512619,0.47465159,59130.0,59127.0,0.0965]
[1723892512821,0.68465159,59130.0,59127.0,0.0965]
[1723892514018,0.68465159,59130.0,59127.0,0.0995]
[1723892514404,0.41124659,59130.0,59127.0,0.0995]
[1723892514606,0.3608,59130.0,59128.0,0.03721488]
[1723892514919,0.3608,59130.0,59127.0,0.0995]
[1723892515116,0.3608,59130.0,59128.0,0.03721477]
[1723892515319,0.3608,59130.0,59129.0,0.0935]
[1723892515622,0.3608,59130.0,59127.0,0.159908]
[1723892515815,0.3608,59130.0,59127.0,0.163908]
[1723892516317,0.05044659,59129.0,59128.0,0.03921488]
[1723892516724,0.1035,59129.0,59128.0,0.03921488]
[1723892516921,0.1035,59129.0,59127.0,0.063408]
[1723892517112,0.1035,59129.0,59128.0,0.002]
[1723892517807,0.1035,59129.0,59128.0,0.004]
[1723892521222,0.166906,59129.0,59128.0,0.004]
[1723892521515,0.527706,59129.0,59128.0,0.004]
[1723892523324,0.59494333,59129.0,59128.0,0.004]
[1723892524321,0.527706,59129.0,59128.0,0.004]
[1723892524530,0.59494507,59129.0,59128.0,0.004]
[1723892525029,0.527706,59129.0,59128.0,0.004]
[1723892531830,0.6118497,59129.0,59128.0,0.004]
[1723892533337,0.19431509,59129.0,59128.0,0.004]
[1723892533638,0.55511509,59129.0,59128.0,0.004]
[1723892533833,0.527706,59129.0,59128.0,0.004]
[1723892534338,0.55511506,59129.0,59128.0,0.004]
[1723892535735,0.19431506,59129.0,59128.0,0.004]
[1723892536034,0.55511506,59129.0,59128.0,0.004]
[1723892537127,0.65620009,59129.0,59128.0,0.004]
[1723892537636,1.06247506,59129.0,59128.0,0.004]
[1723892538330,1.56356009,59129.0,59128.0,0.004]
[1723892538522,1.46247506,59129.0,59128.0,0.004]
[1723892538723,1.56349354,59129.0,59128.0,0.004]
[1723892538929,0.063413,59123.0,59121.0,0.00025366]
[1723892539229,0.1385,59122.0,59121.0,0.00025366]
[1723892539427,0.3585,59122.0,59121.0,0.00025366]
[1723892539728,0.3585,59122.0,59121.0,0.05097369]
[1723892540135,0.3585,59122.0,59121.0,0.05997369]
[1723892540330,0.3585,59122.0,59121.0,0.06197369]
[1723892540924,0.3595,59122.0,59121.0,0.05997369]
[1723892541234,0.3605,59122.0,59121.0,0.06197369]
[1723892541432,0.3605,59122.0,59121.0,0.01125366]
[1723892542530,0.44468089,59122.0,59121.0,0.01125366]
[1723892542924,0.3702792,59122.0,59121.0,0.01125366]
[1723892543124,0.45446009,59122.0,59121.0,0.01125366]
[1723892543932,0.39769175,59122.0,59121.0,0.01125366]
[1723892544131,0.45443594,59122.0,59121.0,0.01125366]
[1723892544531,0.3702792,59122.0,59121.0,0.01125366]
[1723892545040,0.45443594,59122.0,59121.0,0.01125366]
[1723892545831,0.39769211,59122.0,59121.0,0.01125366]
[1723892547134,0.30419243,59122.0,59121.0,0.01125366]
[1723892547329,0.4987093,59122.0,59121.0,0.01125366]
[1723892548237,0.30419243,59122.0,59121.0,0.01125366]
[1723892548439,0.4987093,59122.0,59121.0,0.01125366]
[1723892548835,0.39769243,59122.0,59121.0,0.01125366]
[1723892550830,0.75849243,59122.0,59121.0,0.01125366]
[1723892551241,1.26593243,59122.0,59121.0,0.01125366]
[1723892551748,1.265932,59122.0,59121.0,0.01125366]
[1723892553137,1.265932,59122.0,59112.0,0.3608]
[1723892553138,0.063419,59117.0,59112.0,0.3608]
[1723892553338,0.0935,59113.0,59112.0,0.3608]
[1723892554241,0.1035,59113.0,59112.0,0.3608]
[1723892554638,0.1045,59113.0,59112.0,0.3628]
[1723892555246,0.1045,59113.0,59112.0,0.002]
[1723892555738,0.1055,59113.0,59112.0,0.002]
[1723892557647,0.1055,59113.0,59111.0,0.05072003]
[1723892558244,0.1536,59113.0,59111.0,0.05072003]
[1723892558447,0.217023,59113.0,59110.0,0.41152003]
[1723892558642,0.217023,59113.0,59110.0,0.3608]
[1723892558643,0.063424,59112.0,59110.0,0.3608]
[1723892558846,0.36,59112.0,59106.0,0.06754872]
[1723892559041,0.36,59112.0,59103.0,0.3608]
[1723892559042,0.063427,59110.0,59108.0,0.05065322]
[1723892559244,0.413427,59110.0,59108.0,0.05065322]
[1723892559744,0.063428,59108.0,59103.0,0.05065322]
[1723892559954,0.0935,59105.0,59103.0,0.05065322]
[1723892560751,0.0935,59105.0,59102.0,0.16398822]
[1723892561248,0.0945,59105.0,59103.0,0.05065322]
[1723892561456,0.0945,59105.0,59102.0,0.16398822]
[1723892561953,0.0955,59105.0,59102.0,0.16398822]
[1723892562249,0.0945,59105.0,59104.0,0.05065322]
[1723892562453,0.002,59105.0,59104.0,0.08788092]
[1723892563354,0.002,59105.0,59104.0,0.0372277]
[1723892563740,0.0955,59105.0,59104.0,0.0372277]
[1723892563948,0.0955,59105.0,59104.0,0.08787092]
[1723892564145,0.0955,59105.0,59104.0,0.0372277]
[1723892564349,0.0955,59105.0,59104.0,0.08787085]
[1723892564555,0.0955,59105.0,59104.0,0.0372277]
[1723892565451,0.14596326,59105.0,59104.0,0.0372277]
[1723892565652,0.14596326,59105.0,59103.0,0.49334272]
[1723892565846,0.0955,59105.0,59103.0,0.4748819]
[1723892566047,0.31596326,59105.0,59103.0,0.424234]
[1723892566353,0.05046326,59104.0,59103.0,0.424234]
[1723892566553,0.06046326,59104.0,59103.0,0.424234]
[1723892566864,0.05046326,59104.0,59103.0,0.424234]
[1723892567258,0.06046326,59104.0,59103.0,0.424234]
[1723892567447,0.05046326,59104.0,59103.0,0.424234]
[1723892567643,0.06046326,59104.0,59103.0,0.4748819]
[1723892567848,0.06046326,59104.0,59103.0,0.424234]
[1723892568253,0.05046326,59104.0,59103.0,0.424234]
[1723892568449,0.14396326,59105.0,59103.0,0.424234]
[1723892568649,0.05246326,59104.0,59103.0,0.424234]
[1723892569047,0.23246326,59104.0,59103.0,0.3608]
[1723892569243,0.23246326,59104.0,59098.0,0.06754872]
[1723892569244,0.2796,59104.0,59099.0,0.0506479]
[1723892569457,0.0935,59101.0,59099.0,0.0506479]
[1723892569845,0.0935,59101.0,59098.0,0.1140869]
[1723892570249,0.0935,59101.0,59099.0,0.0506479]
[1723892571350,0.0945,59101.0,59098.0,0.1140869]
[1723892571955,0.1245,59101.0,59098.0,0.1140869]
[1723892572257,0.1255,59101.0,59098.0,0.1140869]
[1723892572457,0.1245,59101.0,59098.0,0.063439]
[1723892572850,0.1255,59101.0,59098.0,0.063439]
[1723892573152,0.17597076,59101.0,59098.0,0.063439]
[1723892573354,0.17597076,59101.0,59097.0,0.05085489]
[1723892573551,0.17597076,59101.0,59085.0,0.36224]
[1723892573552,0.4543,59098.0,59096.0,0.05064262]
[1723892573752,0.4543,59098.0,59089.0,0.13210385]
[1723892573753,0.0935,59097.0,59090.0,0.05064262]
[1723892573956,0.0935,59091.0,59089.0,0.12136979]
[1723892574256,0.0935,59091.0,59089.0,0.16199592]
[1723892574456,0.0935,59091.0,59090.0,0.3608]
[1723892574659,0.09369003,59091.0,59090.0,0.3608]
[1723892574849,0.09369003,59091.0,59090.0,0.41144792]
[1723892575560,0.09569003,59091.0,59090.0,0.3608]
[1723892575953,0.09469003,59091.0,59090.0,0.3608]
[1723892576153,0.09569003,59091.0,59090.0,0.3608]
[1723892576355,0.00219003,59091.0,59090.0,0.41144792]
[1723892576557,0.00219003,59091.0,59090.0,0.3608]
[1723892577161,0.00219003,59091.0,59090.0,0.39803498]
[1723892577567,0.05045252,59099.0,59090.0,1.66651498]
[1723892577761,0.05045252,59099.0,59098.0,0.424239]
[1723892577762,0.08,59099.0,59098.0,0.424239]
[1723892578565,0.08004476,59099.0,59098.0,0.424239]
[1723892578862,0.08204476,59099.0,59098.0,0.424239]
[1723892580670,0.08204476,59099.0,59098.0,0.52044219]
[1723892580871,0.08204476,59099.0,59098.0,0.469839]
[1723892581357,0.08204476,59099.0,59098.0,0.50706795]
[1723892582661,0.08204476,59099.0,59098.0,0.469839]
[1723892582857,0.08204476,59099.0,59098.0,0.424239]
[1723892583063,0.08204476,59099.0,59098.0,0.47486172]
[1723892583862,0.08204476,59099.0,59098.0,0.424239]
[1723892584764,0.12914476,59099.0,59098.0,0.424239]
[1723892584963,0.13922861,59099.0,59098.0,0.424239]
[1723892585157,0.13922861,59099.0,59098.0,0.3608]
[1723892585369,0.13922861,59099.0,59087.0,0.05063696]
[1723892585370,0.063443,59094.0,59087.0,0.05063696]
[1723892585564,0.063443,59094.0,59084.0,0.0935]
[1723892585565,0.05045304,59089.0,59084.0,0.0935]
[1723892585762,0.433443,59094.0,59087.0,0.3608]
[1723892585763,0.05045304,59090.0,59087.0,0.3608]
[1723892585969,0.05045304,59089.0,59087.0,0.3608]
[1723892586168,0.0935,59088.0,59087.0,0.42425]
[1723892586764,0.0935,59088.0,59087.0,0.3608]
[1723892587068,0.14395304,59088.0,59087.0,0.3608]
[1723892587275,0.0935,59088.0,59087.0,0.41143367]
[1723892587463,0.0935,59088.0,59087.0,0.3608]
[1723892587965,0.0465,59088.0,59087.0,0.3608]
[1723892588164,0.0475,59088.0,59087.0,0.41143054]
[1723892588567,0.0485,59088.0,59087.0,0.41243696]
[1723892589963,0.0485,59088.0,59087.0,0.3618]
[1723892590969,0.002,59088.0,59087.0,0.3618]
[1723892591562,0.002,59088.0,59087.0,0.39903748]
[1723892591873,0.00025366,59096.0,59094.0,0.063443]
[1723892592171,0.04025366,59096.0,59095.0,0.44703231]
[1723892592671,0.00025366,59096.0,59095.0,0.44703231]
[1723892593070,4.476e-05,59099.0,59095.0,1.35467231]
[1723892593277,4.476e-05,59099.0,59096.0,0.03723231]
[1723892593569,4.476e-05,59099.0,59095.0,0.7706]
[1723892593570,4.476e-05,59099.0,59098.0,0.063439]
[1723892593770,4.476e-05,59099.0,59098.0,0.10067131]
[1723892594166,0.00104476,59099.0,59098.0,0.10067131]
[1723892594763,0.00104476,59099.0,59096.0,0.05062843]
[1723892595083,0.13175191,59099.0,59098.0,0.002]
[1723892595376,0.14291837,59099.0,59098.0,0.002]
[1723892595675,0.60331,59099.0,59098.0,0.002]
[1723892596883,0.60331,59099.0,59098.0,0.004]
[1723892597269,0.60331,59099.0,59098.0,0.002]
[1723892598075,0.60331,59099.0,59098.0,0.009]
[1723892599467,0.00204476,59099.0,59098.0,0.009]
[1723892600368,0.05249094,59099.0,59098.0,0.009]
[1723892600573,0.00204476,59099.0,59098.0,0.009]
[1723892601473,0.00204476,59099.0,59098.0,0.04623002]
[1723892601874,0.00204476,59099.0,59098.0,0.09685845]
[1723892602079,0.00204476,59099.0,59098.0,0.09283002]
[1723892602776,0.00025366,59104.0,59103.0,0.063434]
[1723892602974,0.00025366,59104.0,59103.0,0.46146402]
[1723892604178,0.00025366,59104.0,59103.0,0.46346402]
[1723892605083,0.00025366,59104.0,59103.0,0.82426402]
[1723892605585,0.00025366,59104.0,59103.0,0.82726402]
[1723892606274,0.00025366,59104.0,59103.0,0.87785601]
[1723892606584,0.00025366,59104.0,59103.0,0.82726402]
[1723892608182,0.00025366,59104.0,59103.0,0.82726147]
[1723892608578,0.00025366,59104.0,59103.0,0.429234]
[1723892609884,0.00025366,59104.0,59103.0,0.10566301]
[1723892611988,0.00025366,59104.0,59103.0,0.068434]
[1723892612183,0.00025366,59104.0,59103.0,0.10566277]
[1723892612585,0.00025366,59104.0,59103.0,0.46646282]
[1723892613377,0.02767025,59104.0,59103.0,0.46646282]
[1723892613584,0.00025366,59104.0,59103.0,0.46646282]
[1723892614294,0.08424443,59104.0,59103.0,0.46646282]
[1723892614496,0.08424883,59104.0,59103.0,0.46646282]
[1723892615088,0.02766948,59104.0,59103.0,0.46646282]
[1723892615286,0.00025366,59104.0,59103.0,0.46646282]
[1723892616302,0.02766948,59104.0,59103.0,0.46646282]
[1723892617300,0.02766948,59104.0,59103.0,0.429234]
[1723892617301,0.03766948,59104.0,59103.0,0.429234]
[1723892617595,0.13868635,59104.0,59103.0,0.429234]
[1723892618391,0.03766948,59104.0,59103.0,0.429234]
[1723892620185,0.03767108,59104.0,59103.0,0.429234]
[1723892620595,0.01025366,59104.0,59103.0,0.005]
[1723892620797,0.07033792,59104.0,59103.0,0.005]
[1723892621293,0.19781729,59104.0,59103.0,0.005]
[1723892621499,0.10440015,59104.0,59103.0,0.005]
[1723892622103,0.063442,59095.0,59093.0,0.00025366]
[1723892622297,0.4545,59094.0,59093.0,0.00025366]
[1723892622698,0.4745,59094.0,59093.0,0.00025366]
[1723892623293,0.4745,59094.0,59093.0,0.01425366]
[1723892623698,0.4745,59094.0,59093.0,0.00025366]
[1723892624007,0.4755,59094.0,59093.0,0.01425366]
[1723892624505,0.4555,59094.0,59093.0,0.01425366]
[1723892624895,0.4565,59094.0,59093.0,0.02625366]
[1723892625292,0.3628,59094.0,59093.0,0.02625366]
[1723892628200,0.002,59094.0,59093.0,0.02625366]
[1723892629401,0.065443,59094.0,59093.0,0.02625366]
[1723892634811,0.085443,59094.0,59093.0,0.02625366]
[1723892635208,0.095443,59094.0,59093.0,0.02625366]
[1723892635512,0.14584581,59094.0,59093.0,0.02625366]
[1723892636115,0.095443,59094.0,59093.0,0.02625366]
[1723892637002,0.16269221,59094.0,59093.0,0.02625366]
[1723892637410,0.095443,59094.0,59093.0,0.02625366]
[1723892640111,0.065443,59094.0,59093.0,0.02625366]
[1723892640305,0.13265696,59094.0,59093.0,0.02625366]
[1723892641618,0.49345696,59094.0,59093.0,0.02625366]
[1723892642220,0.426243,59094.0,59093.0,0.02625366]
[1723892642717,0.456243,59094.0,59093.0,0.02625366]
[1723892642922,0.426243,59094.0,59093.0,0.02625366]
[1723892643518,0.002,59094.0,59093.0,0.02625366]
[1723892645324,0.05242084,59094.0,59093.0,0.02625366]
[1723892645920,0.002,59094.0,59093.0,0.07684138]
[1723892646221,0.05242084,59094.0,59093.0,0.07684138]
[1723892646724,0.05242084,59094.0,59093.0,0.02625366]
[1723892646912,0.002,59094.0,59093.0,0.02625366]
[1723892647310,0.05242084,59094.0,59093.0,0.02625366]
[1723892648119,0.002,59094.0,59093.0,0.02625366]
[1723892648314,0.002,59094.0,59093.0,0.07684138]
[1723892648519,0.002,59094.0,59093.0,0.02625366]
[1723892648714,0.002,59094.0,59093.0,0.07693248]
[1723892648917,0.012,59094.0,59093.0,0.07693248]
[1723892649118,0.002,59094.0,59093.0,0.02625366]
[1723892650729,0.002,59094.0,59093.0,0.07697429]
[1723892650926,0.002,59094.0,59093.0,0.07697367]
[1723892651417,0.002,59094.0,59093.0,0.02625366]
[1723892651825,0.002,59094.0,59093.0,0.07697814]
[1723892652026,0.0956,59094.0,59093.0,0.07697814]
[1723892652322,0.0956,59094.0,59093.0,0.02625366]
[1723892652531,0.1156,59094.0,59093.0,0.07698067]
[1723892652828,0.1156,59094.0,59093.0,0.02625366]
[1723892653223,0.19966151,59094.0,59093.0,0.02625366]
[1723892655117,0.1156,59094.0,59093.0,0.02625366]
[1723892655524,0.14302403,59094.0,59093.0,0.02625366]
[1723892655728,0.1156,59094.0,59093.0,0.02625366]
[1723892655917,0.14302442,59094.0,59093.0,0.02625366]
[1723892656726,0.50382442,59094.0,59093.0,0.02625366]
[1723892657219,0.50382452,59094.0,59093.0,0.02625366]
[1723892658227,0.4764,59094.0,59093.0,0.02625366]
[1723892658631,0.50382443,59094.0,59093.0,0.02625366]
[1723892661727,0.14302443,59094.0,59093.0,0.02625366]
[1723892661927,0.50382443,59094.0,59093.0,0.02625366]
[1723892662130,0.4764,59094.0,59093.0,0.02625366]
[1723892662526,0.56056024,59094.0,59093.0,0.02625366]
[1723892662728,0.56055813,59094.0,59093.0,0.02625366]
[1723892663838,0.50382432,59094.0,59093.0,0.02625366]
[1723892664040,0.60471045,59094.0,59093.0,0.02625366]
[1723892664337,0.50382432,59094.0,59093.0,0.02625366]
[1723892665429,0.5365027,59094.0,59080.0,0.05072122]
[1723892665725,0.4544,59081.0,59079.0,0.05072381]
[1723892665930,0.16088762,59080.0,59078.0,0.05072381]
[1723892666131,0.01,59080.0,59079.0,0.03724628]
[1723892666340,0.07725598,59080.0,59079.0,0.03724628]
[1723892666637,0.01,59080.0,59079.0,0.03724628]
[1723892667027,0.1026,59080.0,59079.0,0.03724628]
[1723892667222,0.16982661,59080.0,59079.0,0.03724628]
[1723892667640,0.17082661,59080.0,59074.0,0.11418781]
[1723892667937,0.05041978,59077.0,59075.0,0.10071026]
[1723892668153,0.04941978,59077.0,59076.0,0.03724726]
[1723892668344,0.04941978,59078.0,59076.0,0.03724726]
[1723892668635,0.04941978,59078.0,59077.0,0.03724726]
[1723892669227,0.002,59080.0,59077.0,0.03724726]
[1723892669434,0.002,59080.0,59074.0,0.05072381]
[1723892669435,0.002,59080.0,59078.0,0.03724726]
[1723892669635,0.002,59080.0,59079.0,0.08284726]
[1723892669839,0.01007126,59085.0,59079.0,0.08284726]
[1723892670032,0.01007126,59085.0,59081.0,0.05064868]
[1723892670033,0.07007126,59085.0,59081.0,0.05064868]
[1723892670339,0.06025388,59085.0,59082.0,0.03724726]
[1723892670538,0.00025388,59085.0,59083.0,0.03724726]
[1723892670735,0.00025388,59085.0,59084.0,0.08554726]
[1723892671037,0.06722661,59096.0,59084.0,0.55606]
[1723892671238,0.06722661,59097.0,59094.0,0.063443]
[1723892671436,0.67189102,59099.0,59094.0,0.063443]
[1723892671741,0.06722661,59098.0,59094.0,0.063443]
[1723892672430,0.67189102,59099.0,59094.0,0.063443]
[1723892673228,0.001,59096.0,59094.0,0.063443]
[1723892673731,0.003,59099.0,59097.0,0.063439]
[1723892674040,0.006,59099.0,59098.0,0.95407565]
[1723892674337,0.003,59099.0,59098.0,0.95407565]
[1723892674641,0.003,59099.0,59098.0,1.35407565]
[1723892674939,0.00025388,59102.0,59101.0,0.063436]
[1723892675236,0.00025388,59102.0,59101.0,0.16809123]
[1723892675437,0.00025388,59102.0,59101.0,1.07569123]
[1723892676333,0.00025388,59102.0,59101.0,1.00827165]
[1723892676532,0.0472,59117.0,59112.0,0.063423]
[1723892677645,0.0472,59117.0,59112.0,0.064423]
[1723892677840,0.0572,59117.0,59112.0,0.064423]
[1723892678045,0.0672,59117.0,59112.0,0.065423]
[1723892678342,0.0672,59117.0,59113.0,0.063423]
[1723892679450,0.01012292,59128.0,59124.0,0.063411]
[1723892679742,0.01012292,59128.0,59116.0,0.3608]
[1723892679743,0.06710284,59130.0,59122.0,0.3608]
[1723892679940,0.06710284,59132.0,59122.0,0.3608]
[1723892680337,0.063402,59133.0,59122.0,0.3608]
[1723892680531,0.014,59128.0,59124.0,0.001]
[1723892681143,0.014,59128.0,59126.0,0.063409]
[1723892681343,0.011,59132.0,59126.0,0.063409]
[1723892681843,0.011,59132.0,59122.0,0.36305388]
[1723892682034,0.011,59132.0,59128.0,0.063406]
[1723892682231,0.01,59132.0,59128.0,0.063406]
[1723892682543,0.01,59132.0,59130.0,0.063404]
[1723892683138,0.00025388,59133.0,59130.0,0.063404]
[1723892684033,0.008,59132.0,59130.0,0.064404]
[1723892684541,0.008,59132.0,59130.0,0.065404]
[1723892686551,0.00925388,59133.0,59130.0,0.065404]
[1723892687039,0.00925388,59133.0,59131.0,0.063403]
[1723892687643,0.063389,59145.0,59132.0,0.60622]
[1723892687948,0.3608,59151.0,59140.0,0.063394]
[1723892687949,0.0467,59149.0,59140.0,0.063394]
[1723892688149,0.0466,59148.0,59140.0,0.063394]
[1723892688744,0.109986,59148.0,59140.0,0.063394]